[Event "Titled Tuesday Blitz June 27 Early 2023"]
[White "Szyszylo, Rafal"]
[Black "le-castor-faineant"]
[WhiteFideId "1109626"]
[WhiteElo "2401"]
[BlackElo "2138"]
[Result "0-1"]
[Round "3"]
[TimeControl "180+2"]
[Date "2023.06.27"]
[WhiteClock "0:00:00"]
[BlackClock "0:00:09"]
[Board "226"]

1. e4 {[%clk 0:02:56]}  e5 {[%clk 0:02:58]} 2. Bc4 {[%clk 0:02:55]}  Nf6 {[%clk 0:02:56]} 3. Nc3 {[%clk 0:02:55]}  Bc5 {[%clk 0:02:55]} 4. d3 {[%clk 0:02:54]}  c6 {[%clk 0:02:53]} 5. Qf3 {[%clk 0:02:39]}  d5 {[%clk 0:02:40]} 6. exd5 {[%clk 0:02:35]}  Bg4 {[%clk 0:02:40]} 7. Qg3 {[%clk 0:02:31]}  h5 {[%clk 0:02:40]} 8. Qxe5+ {[%clk 0:02:22]}  Kd7 {[%clk 0:02:38]} 9. dxc6+ {[%clk 0:01:53]}  Kxc6 {[%clk 0:02:36]} 10. Be3 {[%clk 0:01:44]}  Nbd7 {[%clk 0:02:29]} 11. Qg5 {[%clk 0:01:28]}  Re8 {[%clk 0:02:14]} 12. Kd2 {[%clk 0:01:26]}  Re5 {[%clk 0:02:10]} 13. Qxg7 {[%clk 0:01:17]}  Bxe3+ {[%clk 0:02:01]} 14. fxe3 {[%clk 0:01:15]}  Qe7 {[%clk 0:02:01]} 15. Qxf7 {[%clk 0:01:05]}  Qd6 {[%clk 0:01:41]} 16. Nf3 {[%clk 0:01:00]}  Rf8 {[%clk 0:01:37]} 17. Qg7 {[%clk 0:00:56]}  Bxf3 {[%clk 0:01:24]} 18. gxf3 {[%clk 0:00:55]}  Rxe3 {[%clk 0:01:14]} 19. Kxe3 {[%clk 0:00:45]}  Qe5+ {[%clk 0:01:14]} 20. Ne4 {[%clk 0:00:32]}  Ng4+ {[%clk 0:01:09]} 21. fxg4 {[%clk 0:00:30]}  Qxg7 {[%clk 0:01:08]} 22. g5 {[%clk 0:00:30]}  Nc5 {[%clk 0:01:04]} 23. h4 {[%clk 0:00:29]}  Nxe4 {[%clk 0:01:02]} 24. dxe4 {[%clk 0:00:30]}  Qxb2 {[%clk 0:01:00]} 25. Bd5+ {[%clk 0:00:31]}  Kc7 {[%clk 0:00:59]} 26. Rhf1 {[%clk 0:00:23]}  Qc3+ {[%clk 0:00:55]} 27. Ke2 {[%clk 0:00:22]}  Qxc2+ {[%clk 0:00:56]} 28. Ke3 {[%clk 0:00:22]}  Qc3+ {[%clk 0:00:47]} 29. Ke2 {[%clk 0:00:22]}  Qb2+ {[%clk 0:00:15]} 30. Kd3 {[%clk 0:00:21]}  Qa3+ {[%clk 0:00:10]} 31. Bb3 {[%clk 0:00:20]}  Qa6+ {[%clk 0:00:06]} 32. Bc4 {[%clk 0:00:18]}  Rd8+ {[%clk 0:00:06]} 33. Kc3 {[%clk 0:00:18]}  Qa3+ {[%clk 0:00:06]} 34. Bb3 {[%clk 0:00:19]}  Qc5+ {[%clk 0:00:06]} 35. Kb2 {[%clk 0:00:17]}  Rd2+ {[%clk 0:00:05]} 36. Kb1 {[%clk 0:00:16]}  Qd4 {[%clk 0:00:04]} 37. Rc1+ {[%clk 0:00:16]}  Kb8 {[%clk 0:00:05]} 38. Rc2 {[%clk 0:00:12]}  Rd1+ {[%clk 0:00:04]} 39. Rc1 {[%clk 0:00:11]}  Rxc1+ {[%clk 0:00:04]} 40. Kxc1 {[%clk 0:00:12]}  Qxa1+ {[%clk 0:00:04]} 41. Kd2 {[%clk 0:00:13]}  Qe5 {[%clk 0:00:04]} 42. Ke3 {[%clk 0:00:14]}  Qg3+ {[%clk 0:00:04]} 43. Kd4 {[%clk 0:00:13]}  Qxh4 {[%clk 0:00:05]} 44. g6 {[%clk 0:00:13]}  Qf6+ {[%clk 0:00:05]} 45. e5 {[%clk 0:00:13]}  Qxg6 {[%clk 0:00:06]} 46. e6 {[%clk 0:00:14]}  Qf6+ {[%clk 0:00:05]} 47. Kd5 {[%clk 0:00:14]}  Qe7 {[%clk 0:00:06]} 48. Ke5 {[%clk 0:00:13]}  h4 {[%clk 0:00:07]} 49. Kf4 {[%clk 0:00:13]}  h3 {[%clk 0:00:07]} 50. Kg3 {[%clk 0:00:14]}  Qh7 {[%clk 0:00:07]} 51. Kh2 {[%clk 0:00:14]}  Kc7 {[%clk 0:00:06]} 52. e7 {[%clk 0:00:10]}  Kd7 {[%clk 0:00:07]} 53. Bc2 {[%clk 0:00:09]}  Qxc2+ {[%clk 0:00:06]} 54. Kxh3 {[%clk 0:00:09]}  Kxe7 {[%clk 0:00:07]} 55. Kg4 {[%clk 0:00:09]}  Qxa2 {[%clk 0:00:08]} 56. Kf4 {[%clk 0:00:00]}  Qc2 {[%clk 0:00:09]} 0-1


[Site "https://www.chess.com"]

[Event "Titled Tuesday Blitz June 27 Early 2023"]
[White "Barbot, Pierre"]
[Black "Marin Masis, Jose Esteban"]
[WhiteFideId "663727"]
[BlackFideId "6508146"]
[WhiteElo "2382"]
[BlackElo "2119"]
[Result "1-0"]
[Round "3"]
[TimeControl "180+2"]
[Date "2023.06.27"]
[WhiteClock "0:00:06"]
[BlackClock "0:00:17"]
[Board "231"]

1. d4 {[%clk 0:01:02]}  Nf6 {[%clk 0:02:59]} 2. Nf3 {[%clk 0:01:00]}  d5 {[%clk 0:02:58]} 3. Bf4 {[%clk 0:01:00]}  Bf5 {[%clk 0:02:57]} 4. e3 {[%clk 0:00:59]}  e6 {[%clk 0:02:57]} 5. c4 {[%clk 0:00:59]}  c6 {[%clk 0:02:52]} 6. Nc3 {[%clk 0:00:55]}  Bd6 {[%clk 0:02:50]} 7. Bd3 {[%clk 0:00:52]}  Bxd3 {[%clk 0:02:44]} 8. Qxd3 {[%clk 0:00:53]}  Bxf4 {[%clk 0:02:40]} 9. exf4 {[%clk 0:00:54]}  dxc4 {[%clk 0:02:39]} 10. Qxc4 {[%clk 0:00:53]}  Nbd7 {[%clk 0:02:34]} 11. O-O {[%clk 0:00:51]}  Nb6 {[%clk 0:02:31]} 12. Qb3 {[%clk 0:00:47]}  O-O {[%clk 0:02:30]} 13. Rad1 {[%clk 0:00:45]}  Qc7 {[%clk 0:02:23]} 14. Ne5 {[%clk 0:00:42]}  Nbd5 {[%clk 0:02:20]} 15. g3 {[%clk 0:00:39]}  Rfd8 {[%clk 0:02:06]} 16. Rfe1 {[%clk 0:00:37]}  h6 {[%clk 0:01:53]} 17. Na4 {[%clk 0:00:36]}  Nb6 {[%clk 0:01:27]} 18. Nc5 {[%clk 0:00:33]}  Rab8 {[%clk 0:01:26]} 19. Qc2 {[%clk 0:00:26]}  Nbd7 {[%clk 0:01:25]} 20. f5 {[%clk 0:00:18]}  Nxe5 {[%clk 0:01:18]} 21. dxe5 {[%clk 0:00:18]}  Rxd1 {[%clk 0:01:16]} 22. Qxd1 {[%clk 0:00:18]}  Nd5 {[%clk 0:01:12]} 23. fxe6 {[%clk 0:00:17]}  fxe6 {[%clk 0:01:11]} 24. Nxe6 {[%clk 0:00:17]}  Qf7 {[%clk 0:01:07]} 25. Qg4 {[%clk 0:00:18]}  Re8 {[%clk 0:01:04]} 26. Nc5 {[%clk 0:00:12]}  Rf8 {[%clk 0:01:03]} 27. f4 {[%clk 0:00:12]}  Qe7 {[%clk 0:01:02]} 28. Nd3 {[%clk 0:00:11]}  Kh8 {[%clk 0:00:46]} 29. e6 {[%clk 0:00:11]}  Qc7 {[%clk 0:00:45]} 30. Ne5 {[%clk 0:00:11]}  Qb6+ {[%clk 0:00:45]} 31. Kh1 {[%clk 0:00:11]}  Qf2 {[%clk 0:00:26]} 32. Qe2 {[%clk 0:00:11]}  Qxe2 {[%clk 0:00:23]} 33. Rxe2 {[%clk 0:00:12]}  Re8 {[%clk 0:00:23]} 34. Nf7+ {[%clk 0:00:11]}  Kg8 {[%clk 0:00:22]} 35. Nd6 {[%clk 0:00:11]}  Re7 {[%clk 0:00:22]} 36. f5 {[%clk 0:00:12]}  b6 {[%clk 0:00:21]} 37. Kg2 {[%clk 0:00:12]}  Nf6 {[%clk 0:00:22]} 38. Kf3 {[%clk 0:00:11]}  Nd5 {[%clk 0:00:22]} 39. g4 {[%clk 0:00:12]}  Nf6 {[%clk 0:00:21]} 40. h4 {[%clk 0:00:12]}  Nd5 {[%clk 0:00:21]} 41. g5 {[%clk 0:00:12]}  hxg5 {[%clk 0:00:21]} 42. hxg5 {[%clk 0:00:13]}  c5 {[%clk 0:00:21]} 43. Ke4 {[%clk 0:00:12]}  Nb4 {[%clk 0:00:21]} 44. a3 {[%clk 0:00:11]}  Nc6 {[%clk 0:00:21]} 45. Kd5 {[%clk 0:00:11]}  Nd4 {[%clk 0:00:21]} 46. Rh2 {[%clk 0:00:10]}  Nf3 {[%clk 0:00:18]} 47. Rf2 {[%clk 0:00:10]}  Nxg5 {[%clk 0:00:18]} 48. Nc8 {[%clk 0:00:06]}  Re8 {[%clk 0:00:18]} 49. Nxa7 {[%clk 0:00:06]}  Nh7 {[%clk 0:00:17]} 50. Nc6 {[%clk 0:00:06]}  Nf6+ {[%clk 0:00:18]} 51. Kd6 {[%clk 0:00:06]}  Rc8 {[%clk 0:00:18]} 52. Re2 {[%clk 0:00:05]}  Re8 {[%clk 0:00:17]} 53. e7 {[%clk 0:00:06]}  Ng4 {[%clk 0:00:17]} 54. Kd7 {[%clk 0:00:05]}  Kf7 {[%clk 0:00:16]} 55. Ne5+ {[%clk 0:00:05]}  Nxe5+ {[%clk 0:00:17]} 56. Rxe5 {[%clk 0:00:05]}  Rg8 {[%clk 0:00:17]} 57. e8=Q+ {[%clk 0:00:04]}  Rxe8 {[%clk 0:00:18]} 58. Rxe8 {[%clk 0:00:05]}  Kf6 {[%clk 0:00:18]} 59. Rf8+ {[%clk 0:00:05]}  Kg5 {[%clk 0:00:18]} 60. Kc6 {[%clk 0:00:05]}  c4 {[%clk 0:00:17]} 61. Kxb6 {[%clk 0:00:06]} 1-0


[Site "https://www.chess.com"]

[Event "Titled Tuesday Blitz June 27 Early 2023"]
[White "Winkels, Marcel"]
[Black "Sokolov, Andrei"]
[WhiteFideId "1003887"]
[BlackFideId "11600306"]
[WhiteElo "2117"]
[BlackElo "2374"]
[Result "0-1"]
[Round "3"]
[TimeControl "180+2"]
[Date "2023.06.27"]
[WhiteClock "0:00:00"]
[BlackClock "0:00:10"]
[Board "232"]

1. e4 {[%clk 0:03:00]}  c6 {[%clk 0:03:00]} 2. d4 {[%clk 0:03:00]}  d5 {[%clk 0:03:00]} 3. exd5 {[%clk 0:02:59]}  cxd5 {[%clk 0:03:01]} 4. c4 {[%clk 0:02:59]}  Nf6 {[%clk 0:03:00]} 5. Nc3 {[%clk 0:03:00]}  e6 {[%clk 0:03:00]} 6. Nf3 {[%clk 0:02:59]}  Be7 {[%clk 0:03:00]} 7. cxd5 {[%clk 0:02:59]}  Nxd5 {[%clk 0:02:58]} 8. Bd3 {[%clk 0:02:59]}  O-O {[%clk 0:02:56]} 9. O-O {[%clk 0:02:59]}  Nc6 {[%clk 0:02:54]} 10. Re1 {[%clk 0:03:00]}  Nf6 {[%clk 0:02:41]} 11. a3 {[%clk 0:02:57]}  b6 {[%clk 0:02:36]} 12. Bc2 {[%clk 0:02:56]}  Bb7 {[%clk 0:02:32]} 13. Qd3 {[%clk 0:02:57]}  Qc7 {[%clk 0:01:58]} 14. Bg5 {[%clk 0:02:42]}  g6 {[%clk 0:01:55]} 15. Bh6 {[%clk 0:02:36]}  Rfd8 {[%clk 0:01:51]} 16. Bb3 {[%clk 0:02:11]}  Bf8 {[%clk 0:01:31]} 17. Qd2 {[%clk 0:01:49]}  Bxh6 {[%clk 0:01:01]} 18. Qxh6 {[%clk 0:01:47]}  Nxd4 {[%clk 0:00:57]} 19. Ng5 {[%clk 0:01:04]}  Nxb3 {[%clk 0:00:30]} 20. Re3 {[%clk 0:00:57]}  Nd4 {[%clk 0:00:23]} 21. Rh3 {[%clk 0:00:42]}  Nf5 {[%clk 0:00:23]} 22. Qxh7+ {[%clk 0:00:13]}  Nxh7 {[%clk 0:00:21]} 23. Rxh7 {[%clk 0:00:14]}  Ng7 {[%clk 0:00:17]} 24. Nce4 {[%clk 0:00:11]}  Qe7 {[%clk 0:00:15]} 25. h4 {[%clk 0:00:09]}  Nh5 {[%clk 0:00:15]} 26. g4 {[%clk 0:00:07]}  Bxe4 {[%clk 0:00:11]} 27. gxh5 {[%clk 0:00:07]}  Qxg5+ {[%clk 0:00:10]} 28. hxg5 {[%clk 0:00:06]}  Kxh7 {[%clk 0:00:11]} 29. h6 {[%clk 0:00:00]}  Rd5 {[%clk 0:00:10]} 0-1


[Site "https://www.chess.com"]

[Event "Titled Tuesday Blitz June 27 Early 2023"]
[White "Melikhov, Evgeny V."]
[Black "Aung Thant Zin"]
[WhiteFideId "4122046"]
[BlackFideId "13000063"]
[WhiteElo "2362"]
[BlackElo "2090"]
[Result "1-0"]
[Round "3"]
[TimeControl "180+2"]
[Date "2023.06.27"]
[WhiteClock "0:01:30"]
[BlackClock "0:01:46"]
[Board "234"]

1. d4 {[%clk 0:03:00]}  Nf6 {[%clk 0:02:58]} 2. c4 {[%clk 0:03:00]}  e6 {[%clk 0:02:57]} 3. Nc3 {[%clk 0:03:00]}  Bb4 {[%clk 0:02:56]} 4. Qc2 {[%clk 0:03:00]}  c5 {[%clk 0:02:56]} 5. dxc5 {[%clk 0:03:00]}  Na6 {[%clk 0:02:55]} 6. a3 {[%clk 0:02:59]}  Bxc3+ {[%clk 0:02:54]} 7. Qxc3 {[%clk 0:03:00]}  Nxc5 {[%clk 0:02:54]} 8. f3 {[%clk 0:03:00]}  b6 {[%clk 0:02:50]} 9. b4 {[%clk 0:02:58]}  Nb7 {[%clk 0:02:49]} 10. e4 {[%clk 0:02:56]}  O-O {[%clk 0:02:49]} 11. Be3 {[%clk 0:02:48]}  d5 {[%clk 0:02:44]} 12. Rd1 {[%clk 0:02:42]}  Qe7 {[%clk 0:02:34]} 13. e5 {[%clk 0:02:25]}  Nd7 {[%clk 0:02:32]} 14. cxd5 {[%clk 0:02:11]}  exd5 {[%clk 0:02:32]} 15. Rxd5 {[%clk 0:02:10]}  Re8 {[%clk 0:02:31]} 16. f4 {[%clk 0:02:03]}  Nf8 {[%clk 0:02:28]} 17. Nf3 {[%clk 0:02:01]}  Rd8 {[%clk 0:02:27]} 18. Rxd8 {[%clk 0:01:51]}  Nxd8 {[%clk 0:02:25]} 19. Be2 {[%clk 0:01:41]}  Be6 {[%clk 0:02:22]} 20. O-O {[%clk 0:01:40]}  Rc8 {[%clk 0:02:22]} 21. Qd2 {[%clk 0:01:38]}  Nc6 {[%clk 0:02:10]} 22. Rd1 {[%clk 0:01:37]}  Rd8 {[%clk 0:02:05]} 23. Qc2 {[%clk 0:01:37]}  Rxd1+ {[%clk 0:02:04]} 24. Bxd1 {[%clk 0:01:32]}  h6 {[%clk 0:01:46]} 25. Qxc6 {[%clk 0:01:30]} 1-0


[Site "https://www.chess.com"]

[Event "Titled Tuesday Blitz June 27 Early 2023"]
[White "Maluco_do_Natal_00"]
[Black "a-z30"]
[WhiteElo "2054"]
[BlackElo "2354"]
[Result "0-1"]
[Round "3"]
[TimeControl "180+2"]
[Date "2023.06.27"]
[WhiteClock "0:00:04"]
[BlackClock "0:01:46"]
[Board "236"]

1. e4 {[%clk 0:03:00]}  c5 {[%clk 0:02:58]} 2. Nf3 {[%clk 0:03:00]}  Nc6 {[%clk 0:02:57]} 3. d4 {[%clk 0:03:01]}  cxd4 {[%clk 0:02:58]} 4. Nxd4 {[%clk 0:03:02]}  Nf6 {[%clk 0:02:58]} 5. Nc3 {[%clk 0:03:01]}  e5 {[%clk 0:02:59]} 6. Ndb5 {[%clk 0:03:01]}  d6 {[%clk 0:02:59]} 7. Bg5 {[%clk 0:03:00]}  a6 {[%clk 0:02:59]} 8. Bxf6 {[%clk 0:03:00]}  gxf6 {[%clk 0:02:59]} 9. Na3 {[%clk 0:03:00]}  b5 {[%clk 0:02:59]} 10. Nd5 {[%clk 0:03:01]}  f5 {[%clk 0:03:00]} 11. c3 {[%clk 0:03:01]}  Bg7 {[%clk 0:03:00]} 12. Bd3 {[%clk 0:02:40]}  Be6 {[%clk 0:02:58]} 13. Qh5 {[%clk 0:02:21]}  fxe4 {[%clk 0:02:49]} 14. Bxe4 {[%clk 0:02:13]}  Ne7 {[%clk 0:02:49]} 15. Nxe7 {[%clk 0:01:50]}  Kxe7 {[%clk 0:02:48]} 16. Bxa8 {[%clk 0:01:36]}  Qxa8 {[%clk 0:02:49]} 17. O-O {[%clk 0:01:31]}  b4 {[%clk 0:02:41]} 18. cxb4 {[%clk 0:01:22]}  e4 {[%clk 0:02:40]} 19. Nc2 {[%clk 0:01:15]}  Bxb2 {[%clk 0:02:31]} 20. Rab1 {[%clk 0:01:05]}  Be5 {[%clk 0:02:30]} 21. a4 {[%clk 0:00:58]}  Rg8 {[%clk 0:02:28]} 22. b5 {[%clk 0:00:39]}  axb5 {[%clk 0:02:24]} 23. axb5 {[%clk 0:00:38]}  Bg4 {[%clk 0:02:15]} 24. Qh4+ {[%clk 0:00:20]}  Bf6 {[%clk 0:02:14]} 25. Qh6 {[%clk 0:00:18]}  Bf3 {[%clk 0:02:07]} 26. Ne3 {[%clk 0:00:16]}  Bg5 {[%clk 0:02:02]} 27. Qxh7 {[%clk 0:00:13]}  Bxe3 {[%clk 0:01:59]} 28. fxe3 {[%clk 0:00:13]}  Rxg2+ {[%clk 0:01:55]} 29. Kh1 {[%clk 0:00:12]}  Rg7+ {[%clk 0:01:49]} 30. Rxf3 {[%clk 0:00:11]}  Rxh7 {[%clk 0:01:49]} 31. Rf4 {[%clk 0:00:10]}  Qa2 {[%clk 0:01:47]} 32. h4 {[%clk 0:00:04]}  Qxb1+ {[%clk 0:01:46]} 0-1


[Site "https://www.chess.com"]

[Event "Titled Tuesday Blitz June 27 Early 2023"]
[White "Semenova, Alina"]
[Black "Vasques, Antonio Pedro Freixial"]
[WhiteFideId "24113875"]
[BlackFideId "1908332"]
[WhiteElo "2050"]
[BlackElo "2349"]
[Result "0-1"]
[Round "3"]
[TimeControl "180+2"]
[Date "2023.06.27"]
[WhiteClock "0:00:00"]
[BlackClock "0:00:16"]
[Board "237"]

1. e4 {[%clk 0:02:59]}  c5 {[%clk 0:02:58]} 2. Nf3 {[%clk 0:02:59]}  Nc6 {[%clk 0:02:55]} 3. d4 {[%clk 0:02:59]}  cxd4 {[%clk 0:02:56]} 4. Nxd4 {[%clk 0:02:59]}  e5 {[%clk 0:02:54]} 5. Nb5 {[%clk 0:02:59]}  d6 {[%clk 0:02:54]} 6. N1c3 {[%clk 0:02:56]}  a6 {[%clk 0:02:54]} 7. Na3 {[%clk 0:02:56]}  b5 {[%clk 0:02:55]} 8. Nd5 {[%clk 0:02:56]}  Nge7 {[%clk 0:02:55]} 9. c4 {[%clk 0:02:55]}  Nxd5 {[%clk 0:02:56]} 10. Qxd5 {[%clk 0:02:52]}  Bd7 {[%clk 0:02:50]} 11. cxb5 {[%clk 0:02:51]}  Nb4 {[%clk 0:02:48]} 12. Qb3 {[%clk 0:02:42]}  d5 {[%clk 0:02:44]} 13. Bd2 {[%clk 0:02:41]}  a5 {[%clk 0:02:29]} 14. exd5 {[%clk 0:02:41]}  Bd6 {[%clk 0:02:15]} 15. Be2 {[%clk 0:02:41]}  O-O {[%clk 0:02:11]} 16. O-O {[%clk 0:02:40]}  Qh4 {[%clk 0:01:53]} 17. Qg3 {[%clk 0:02:32]}  Qf6 {[%clk 0:01:46]} 18. Qg5 {[%clk 0:01:57]}  Qxg5 {[%clk 0:01:37]} 19. Bxg5 {[%clk 0:01:58]}  Rfc8 {[%clk 0:01:37]} 20. Nc4 {[%clk 0:01:44]}  Bc5 {[%clk 0:01:32]} 21. Nxe5 {[%clk 0:01:30]}  Bf5 {[%clk 0:01:25]} 22. Nc6 {[%clk 0:01:16]}  Nxd5 {[%clk 0:01:10]} 23. Bf3 {[%clk 0:01:13]}  Be6 {[%clk 0:01:10]} 24. Rad1 {[%clk 0:01:10]}  h6 {[%clk 0:01:05]} 25. Bxd5 {[%clk 0:01:05]}  hxg5 {[%clk 0:00:59]} 26. Bxe6 {[%clk 0:01:05]}  fxe6 {[%clk 0:01:00]} 27. a4 {[%clk 0:01:04]}  Rc7 {[%clk 0:00:57]} 28. Rd3 {[%clk 0:01:02]}  Rf8 {[%clk 0:00:55]} 29. Rc3 {[%clk 0:00:59]}  Bb6 {[%clk 0:00:54]} 30. g3 {[%clk 0:00:58]}  Rcf7 {[%clk 0:00:53]} 31. Kg2 {[%clk 0:00:55]}  Rxf2+ {[%clk 0:00:53]} 32. Rxf2 {[%clk 0:00:54]}  Rxf2+ {[%clk 0:00:54]} 33. Kh3 {[%clk 0:00:55]}  Rxb2 {[%clk 0:00:53]} 34. Nb8 {[%clk 0:00:50]}  Bg1 {[%clk 0:00:50]} 35. Nd7 {[%clk 0:00:44]}  Rb4 {[%clk 0:00:41]} 36. Rc1 {[%clk 0:00:33]}  g4+ {[%clk 0:00:39]} 37. Kg2 {[%clk 0:00:32]}  Bd4 {[%clk 0:00:40]} 38. Rc8+ {[%clk 0:00:15]}  Kf7 {[%clk 0:00:38]} 39. Nc5 {[%clk 0:00:04]}  Rb2+ {[%clk 0:00:33]} 40. Kf1 {[%clk 0:00:04]}  Rxh2 {[%clk 0:00:17]} 41. b6 {[%clk 0:00:04]}  Rb2 {[%clk 0:00:17]} 42. Rc7+ {[%clk 0:00:00]}  Kg6 {[%clk 0:00:16]} 0-1


[Site "https://www.chess.com"]

[Event "Titled Tuesday Blitz June 27 Early 2023"]
[White "Guevara Sanchez, Erick Marvin"]
[Black "Ng, Clive"]
[WhiteFideId "6700136"]
[BlackFideId "3214869"]
[WhiteElo "1992"]
[BlackElo "2345"]
[Result "0-1"]
[Round "3"]
[TimeControl "180+2"]
[Date "2023.06.27"]
[WhiteClock "0:01:12"]
[BlackClock "0:01:28"]
[Board "239"]

1. e4 {[%clk 0:03:00]}  c5 {[%clk 0:02:59]} 2. Nf3 {[%clk 0:03:00]}  Nc6 {[%clk 0:02:59]} 3. d3 {[%clk 0:03:01]}  g6 {[%clk 0:02:59]} 4. Nc3 {[%clk 0:03:00]}  Bg7 {[%clk 0:02:59]} 5. g3 {[%clk 0:03:00]}  d6 {[%clk 0:02:59]} 6. Bg2 {[%clk 0:03:00]}  e6 {[%clk 0:03:00]} 7. O-O {[%clk 0:02:58]}  Nge7 {[%clk 0:03:00]} 8. Be3 {[%clk 0:02:56]}  Nd4 {[%clk 0:03:00]} 9. Ne2 {[%clk 0:02:43]}  Nxf3+ {[%clk 0:02:57]} 10. Bxf3 {[%clk 0:02:44]}  Bxb2 {[%clk 0:02:57]} 11. Rb1 {[%clk 0:02:43]}  Bg7 {[%clk 0:02:57]} 12. Bg2 {[%clk 0:02:42]}  O-O {[%clk 0:02:57]} 13. f4 {[%clk 0:02:42]}  Rb8 {[%clk 0:02:54]} 14. g4 {[%clk 0:02:38]}  f5 {[%clk 0:02:54]} 15. exf5 {[%clk 0:02:35]}  gxf5 {[%clk 0:02:52]} 16. g5 {[%clk 0:02:34]}  b5 {[%clk 0:02:48]} 17. Ng3 {[%clk 0:02:28]}  Qe8 {[%clk 0:02:41]} 18. Nh5 {[%clk 0:02:25]}  Bb7 {[%clk 0:02:27]} 19. Nxg7 {[%clk 0:02:24]}  Kxg7 {[%clk 0:02:26]} 20. Bxb7 {[%clk 0:02:21]}  Rxb7 {[%clk 0:02:26]} 21. Bc1 {[%clk 0:02:17]}  d5 {[%clk 0:02:18]} 22. c4 {[%clk 0:02:11]}  d4 {[%clk 0:02:14]} 23. Qe1 {[%clk 0:01:58]}  Qc6 {[%clk 0:02:02]} 24. Qe5+ {[%clk 0:01:55]}  Kg8 {[%clk 0:02:00]} 25. Re1 {[%clk 0:01:54]}  Ng6 {[%clk 0:01:48]} 26. Qxe6+ {[%clk 0:01:50]}  Qxe6 {[%clk 0:01:48]} 27. Rxe6 {[%clk 0:01:50]}  Rfb8 {[%clk 0:01:46]} 28. cxb5 {[%clk 0:01:42]}  Rxb5 {[%clk 0:01:46]} 29. Rxb5 {[%clk 0:01:36]}  Rxb5 {[%clk 0:01:47]} 30. Ba3 {[%clk 0:01:35]}  Nxf4 {[%clk 0:01:44]} 31. Re5 {[%clk 0:01:33]}  Nxd3 {[%clk 0:01:40]} 32. Rxf5 {[%clk 0:01:33]}  Ra5 {[%clk 0:01:36]} 33. Bxc5 {[%clk 0:01:16]}  Rxc5 {[%clk 0:01:33]} 34. Rf3 {[%clk 0:01:16]}  Rc1+ {[%clk 0:01:29]} 35. Kg2 {[%clk 0:01:12]}  Ne1+ {[%clk 0:01:28]} 0-1


[Site "https://www.chess.com"]

[Event "Titled Tuesday Blitz June 27 Early 2023"]
[White "Gyulamiryan-koryun"]
[Black "Davidson, Kevin"]
[BlackFideId "2056810"]
[WhiteElo "1944"]
[BlackElo "2324"]
[Result "1-0"]
[Round "3"]
[TimeControl "180+2"]
[Date "2023.06.27"]
[WhiteClock "0:00:01"]
[BlackClock "0:00:00"]
[Board "241"]

1. d4 {[%clk 0:03:00]}  Nf6 {[%clk 0:02:59]} 2. c4 {[%clk 0:03:00]}  g6 {[%clk 0:02:59]} 3. Nf3 {[%clk 0:03:00]}  Bg7 {[%clk 0:03:00]} 4. Nc3 {[%clk 0:02:59]}  d6 {[%clk 0:03:00]} 5. e4 {[%clk 0:02:59]}  O-O {[%clk 0:03:00]} 6. h3 {[%clk 0:02:59]}  Na6 {[%clk 0:03:00]} 7. Be2 {[%clk 0:02:58]}  e5 {[%clk 0:02:59]} 8. d5 {[%clk 0:02:56]}  Nc5 {[%clk 0:02:59]} 9. Qc2 {[%clk 0:02:57]}  a5 {[%clk 0:02:59]} 10. Be3 {[%clk 0:02:57]}  Nh5 {[%clk 0:02:53]} 11. g3 {[%clk 0:02:51]}  f5 {[%clk 0:02:52]} 12. Nd2 {[%clk 0:02:42]}  Nf6 {[%clk 0:02:47]} 13. f3 {[%clk 0:02:14]}  fxe4 {[%clk 0:01:57]} 14. fxe4 {[%clk 0:02:02]}  Nh5 {[%clk 0:01:39]} 15. Bxh5 {[%clk 0:01:56]}  gxh5 {[%clk 0:01:40]} 16. Bxc5 {[%clk 0:01:49]}  dxc5 {[%clk 0:01:40]} 17. O-O-O {[%clk 0:01:50]}  Qg5 {[%clk 0:01:34]} 18. Qd3 {[%clk 0:01:45]}  Bd7 {[%clk 0:01:32]} 19. Kb1 {[%clk 0:01:39]}  Bh6 {[%clk 0:01:13]} 20. Nf3 {[%clk 0:01:31]}  Qe7 {[%clk 0:01:03]} 21. Rdf1 {[%clk 0:01:28]}  Rf6 {[%clk 0:00:54]} 22. Nh4 {[%clk 0:01:21]}  Raf8 {[%clk 0:00:48]} 23. Nf5 {[%clk 0:01:05]}  Bxf5 {[%clk 0:00:48]} 24. exf5 {[%clk 0:01:05]}  Kh8 {[%clk 0:00:34]} 25. g4 {[%clk 0:01:05]}  Bf4 {[%clk 0:00:20]} 26. Ne4 {[%clk 0:01:02]}  Rb6 {[%clk 0:00:19]} 27. f6 {[%clk 0:00:51]}  Rfxf6 {[%clk 0:00:13]} 28. Nxf6 {[%clk 0:00:49]}  Qxf6 {[%clk 0:00:14]} 29. Qe4 {[%clk 0:00:44]}  Rb4 {[%clk 0:00:09]} 30. gxh5 {[%clk 0:00:40]}  b5 {[%clk 0:00:08]} 31. Rxf4 {[%clk 0:00:15]}  Qxf4 {[%clk 0:00:06]} 32. Qxf4 {[%clk 0:00:15]}  exf4 {[%clk 0:00:06]} 33. cxb5 {[%clk 0:00:15]}  c4 {[%clk 0:00:05]} 34. Kc2 {[%clk 0:00:13]}  Rxb5 {[%clk 0:00:05]} 35. Rd1 {[%clk 0:00:11]}  Kg7 {[%clk 0:00:03]} 36. Kc3 {[%clk 0:00:12]}  Kf6 {[%clk 0:00:03]} 37. Kxc4 {[%clk 0:00:12]}  Rxb2 {[%clk 0:00:03]} 38. Kc5 {[%clk 0:00:09]}  Rxa2 {[%clk 0:00:03]} 39. Kc6 {[%clk 0:00:08]}  Rc2+ {[%clk 0:00:03]} 40. Kd7 {[%clk 0:00:08]}  f3 {[%clk 0:00:02]} 41. Rf1 {[%clk 0:00:08]}  f2 {[%clk 0:00:02]} 42. Ra1 {[%clk 0:00:06]}  Ke5 {[%clk 0:00:01]} 43. Rxa5 {[%clk 0:00:02]}  f1=Q {[%clk 0:00:01]} 44. d6+ {[%clk 0:00:03]}  Kf6 {[%clk 0:00:01]} 45. dxc7 {[%clk 0:00:03]}  Qd3+ {[%clk 0:00:00]} 46. Kc8 {[%clk 0:00:01]} 1-0


[Site "https://www.chess.com"]